bitfinex-derivatives/quotes_BTCF0:USTF0_20250910
["timestamp","ask_amount","ask_price","bid_price","bid_amount"]
[1757494661936,0.90619904,112520.0,112510.0,0.12910585]
[1757494663643,1.0001039,112520.0,112510.0,0.10766585]
[1757494663839,0.1925439,112520.0,112510.0,0.10766585]
[1757494664043,1.0001039,112520.0,112510.0,0.10766585]
[1757494664342,1.0001039,112520.0,112510.0,0.12930585]
[1757494664944,0.90619904,112520.0,112510.0,0.12930585]
[1757494665944,1.0001039,112520.0,112510.0,0.10766585]
[1757494666246,1.0001039,112520.0,112510.0,0.12930585]
[1757494667048,0.90619904,112520.0,112510.0,0.12930585]
[1757494667952,0.90619904,112520.0,112510.0,0.14193585]
[1757494668454,0.90619904,112520.0,112510.0,0.12930585]
[1757494668954,1.0001039,112520.0,112510.0,0.12930585]
[1757494669951,1.0001039,112520.0,112510.0,0.10766585]
[1757494670854,0.1925439,112520.0,112510.0,0.10766585]
[1757494671153,1.0000639,112520.0,112510.0,0.10766585]
[1757494671454,0.1925439,112520.0,112510.0,0.10766585]
[1757494671754,1.0000639,112520.0,112510.0,0.10766585]
[1757494671953,0.1925439,112520.0,112510.0,0.10766585]
[1757494672254,1.0000639,112520.0,112510.0,0.10766585]
[1757494672654,0.90615904,112520.0,112510.0,0.12930585]
[1757494672853,1.0000639,112520.0,112510.0,0.10766585]
[1757494673448,1.0000639,112520.0,112510.0,0.01376099]
[1757494674259,0.95233759,112520.0,112510.0,0.01376099]
[1757494675148,1.00003852,112520.0,112510.0,0.01376099]
[1757494675344,1.0159724,112520.0,112510.0,0.01376099]
[1757494677460,0.95233759,112520.0,112510.0,0.01376099]
[1757494677857,0.05091273,112520.0,112510.0,0.03540099]
[1757494678052,0.14481759,112520.0,112510.0,0.01376099]
[1757494678357,0.95233759,112520.0,112510.0,0.01376099]
[1757494678759,0.14481759,112520.0,112510.0,0.01376099]
[1757494679160,0.95233759,112520.0,112510.0,0.03540099]
[1757494680262,0.90615181,112520.0,112510.0,0.03540099]
[1757494680457,1.00005667,112520.0,112510.0,0.03540099]
[1757494681261,1.00005667,112520.0,112510.0,0.12930585]
[1757494682357,1.00005667,112520.0,112510.0,0.03540099]
[1757494682562,1.0159724,112520.0,112510.0,0.03540099]
[1757494684768,1.0159724,112520.0,112510.0,0.01376099]
[1757494685663,1.10987726,112520.0,112510.0,0.01376099]
[1757494685860,0.02277,112500.0,112490.0,0.12877486]
[1757494686064,0.89383069,112500.0,112490.0,0.12867486]
[1757494686261,0.85149273,112500.0,112490.0,0.12867486]
[1757494686663,0.8991705,112500.0,112490.0,0.12867486]
[1757494687968,0.8991705,112500.0,112490.0,0.12967486]
[1757494688866,0.8991705,112500.0,112490.0,0.03577]
[1757494689066,0.8991705,112500.0,112490.0,0.12967486]
[1757494689269,0.85149273,112500.0,112490.0,0.12967486]
[1757494689469,0.92118176,112500.0,112490.0,0.12967486]
[1757494689969,0.92118176,112500.0,112490.0,0.13267486]
[1757494693259,1.01953662,112500.0,112490.0,0.11954486]
[1757494693459,1.06719551,112500.0,112490.0,0.11954486]
[1757494693667,1.06719551,112500.0,112490.0,0.09790486]
[1757494694573,0.97329065,112500.0,112490.0,0.11970486]
[1757494694965,0.97329065,112500.0,112490.0,0.11670486]
[1757494695166,0.97329065,112500.0,112490.0,0.11770486]
[1757494695674,0.97329065,112500.0,112490.0,0.11670486]
[1757494696777,0.16581065,112500.0,112490.0,0.11670486]
[1757494696975,0.16136065,112500.0,112490.0,0.11670486]
[1757494697275,0.16136065,112500.0,112490.0,0.12975486]
[1757494697276,0.83676065,112500.0,112490.0,0.12975486]
[1757494698376,0.78910176,112500.0,112490.0,0.12975486]
[1757494700772,0.79355176,112500.0,112490.0,0.11670486]
[1757494701077,0.88745662,112500.0,112490.0,0.11670486]
[1757494701277,0.88745662,112500.0,112490.0,0.09490486]
[1757494701478,0.88745662,112500.0,112490.0,0.001]
[1757494702372,1.07545788,112500.0,112490.0,0.14195306]
[1757494702576,1.12311677,112500.0,112490.0,0.14195306]
[1757494703078,0.98216371,112500.0,112490.0,0.14195306]
[1757494703776,0.30676371,112500.0,112490.0,0.14195306]
[1757494703980,1.11420371,112500.0,112490.0,0.14195306]
[1757494704180,1.11420371,112500.0,112490.0,0.16375306]
[1757494705979,1.11420371,112500.0,112490.0,0.14195306]
[1757494706381,1.06654482,112500.0,112490.0,0.14195306]
[1757494706782,1.06654482,112500.0,112490.0,0.16375306]
[1757494707682,1.06209482,112500.0,112490.0,0.17680306]
[1757494709280,0.25465482,112500.0,112490.0,0.03585]
[1757494709486,1.06209482,112500.0,112490.0,0.17680306]
[1757494709883,1.10975371,112500.0,112490.0,0.17680306]
[1757494712184,0.30231371,112500.0,112490.0,0.17680306]
[1757494712385,1.10975371,112500.0,112490.0,0.17680306]
[1757494714292,0.16136065,112500.0,112490.0,0.17680306]
[1757494714490,1.10975371,112500.0,112490.0,0.17680306]
[1757494715692,1.10975371,112500.0,112490.0,0.03585]
[1757494715893,1.11420371,112500.0,112490.0,0.16375306]
[1757494722298,1.11412371,112500.0,112490.0,0.16375306]
[1757494722501,1.11412371,112500.0,112490.0,0.17738306]
[1757494722703,0.30676371,112500.0,112490.0,0.17738306]
[1757494723001,0.97317065,112500.0,112490.0,0.17738306]
[1757494723201,1.11412371,112500.0,112490.0,0.17738306]
[1757494725896,0.16141671,112500.0,112490.0,0.56833612]
[1757494726101,0.92106176,112500.0,112490.0,0.56833612]
[1757494726701,0.92106176,112500.0,112490.0,0.42738306]
[1757494726995,0.96877671,112500.0,112490.0,0.42738306]
[1757494728605,0.16141671,112500.0,112490.0,0.42738306]
[1757494728803,0.96873671,112500.0,112490.0,0.42738306]
[1757494729007,0.96873671,112500.0,112490.0,0.42860249]
[1757494731607,0.96873671,112500.0,112490.0,0.28764943]
[1757494731809,0.96873671,112500.0,112490.0,0.42860249]
[1757494732502,0.98460245,112500.0,112490.0,0.42860249]
[1757494735411,1.13000551,112500.0,112490.0,0.16497249]
[1757494737209,1.06642482,112500.0,112490.0,0.16497249]
[1757494738110,1.06642482,112500.0,112490.0,0.17385249]
[1757494739210,1.06642482,112500.0,112490.0,0.03289943]
[1757494739408,1.06642482,112500.0,112490.0,0.17385249]
[1757494740110,0.92547176,112500.0,112490.0,0.17385249]
[1757494740416,1.06642482,112500.0,112490.0,0.17385249]
[1757494742818,1.06642482,112500.0,112490.0,0.17492582]
[1757494743921,1.06642482,112500.0,112490.0,0.17507192]
[1757494744319,1.11413069,112500.0,112490.0,0.17507192]
[1757494746220,0.96872763,112500.0,112490.0,0.18870192]
[1757494746419,1.10968069,112500.0,112490.0,0.18870192]
[1757494746620,1.06197482,112500.0,112490.0,0.18870192]
[1757494747120,1.10968069,112500.0,112490.0,0.18870192]
[1757494747419,1.06197482,112500.0,112490.0,0.18870192]
[1757494749723,0.92102176,112500.0,112490.0,0.18870192]
[1757494749927,1.06197482,112500.0,112490.0,0.18870192]
[1757494750517,1.06197482,112500.0,112490.0,0.04774886]
[1757494750917,1.06197482,112500.0,112490.0,0.18870192]
[1757494751317,1.10968069,112500.0,112490.0,0.18870192]
[1757494752212,1.11068069,112500.0,112490.0,0.18870192]
[1757494752819,1.25608375,112500.0,112490.0,0.15327192]
[1757494753222,1.11513069,112500.0,112490.0,0.15327192]
[1757494753828,1.11513069,112500.0,112490.0,0.01231886]
[1757494754029,1.11513069,112500.0,112490.0,0.15327192]
[1757494754328,1.11513069,112500.0,112490.0,0.15227192]
[1757494754529,1.11513069,112500.0,112490.0,0.17346192]
[1757494757432,1.11513069,112500.0,112490.0,0.17454878]
[1757494758433,1.11513069,112500.0,112490.0,0.17468135]
[1757494759237,1.06742482,112500.0,112490.0,0.17468135]
[1757494759636,1.11513069,112500.0,112490.0,0.17468135]
[1757494760836,0.96972763,112500.0,112490.0,0.18853135]
[1757494761029,1.11513069,112500.0,112490.0,0.18853135]
[1757494762332,0.97417763,112500.0,112490.0,0.14153558]
[1757494764738,0.16685763,112500.0,112490.0,0.14153558]
[1757494764940,0.97397763,112500.0,112490.0,0.14153558]
[1757494766441,0.96948763,112500.0,112490.0,0.14153558]
[1757494767846,0.96948763,112500.0,112490.0,0.04757829]
[1757494768047,0.96948763,112500.0,112490.0,0.14153558]
[1757494775453,0.16240763,112500.0,112490.0,0.14153558]
[1757494775653,0.96948763,112500.0,112490.0,0.14153558]
[1757494776148,0.60477221,112500.0,112490.0,0.01253829]
[1757494776451,1.41181221,112500.0,112490.0,0.01253829]
[1757494776754,1.41181221,112500.0,112490.0,0.00365829]
[1757494777050,0.60477221,112500.0,112490.0,0.00365829]
[1757494777246,1.41181221,112500.0,112490.0,0.00365829]
[1757494778148,0.60477221,112500.0,112490.0,0.00365829]
[1757494778350,1.41181221,112500.0,112490.0,0.00365829]
[1757494778949,1.36410634,112500.0,112490.0,0.00365829]
[1757494779352,0.11975729,112490.0,112480.0,0.00888]
[1757494779549,0.14100002,112490.0,112480.0,0.00888]
[1757494779750,0.18866833,112490.0,112480.0,0.00888]
[1757494779952,0.43866833,112490.0,112480.0,0.00888]
[1757494781459,1.24574833,112490.0,112480.0,0.00888]
[1757494781648,1.19808002,112490.0,112480.0,0.00888]
[1757494781954,1.19808002,112490.0,112460.0,0.10668729]
[1757494782153,0.02313,112470.0,112460.0,0.12792729]
[1757494782454,0.87784849,112470.0,112460.0,0.12792729]
[1757494782753,0.89909122,112470.0,112460.0,0.12792729]
[1757494782955,0.99304851,112470.0,112460.0,0.13681729]
[1757494783846,0.89909122,112470.0,112460.0,0.13681729]
[1757494784056,0.09201122,112470.0,112460.0,0.13681729]
[1757494784256,0.89909122,112470.0,112460.0,0.13781729]
[1757494785455,0.89913122,112470.0,112460.0,0.13781729]
[1757494786354,0.09201122,112470.0,112460.0,0.13781729]
[1757494786658,0.44133122,112470.0,112460.0,0.13781729]
[1757494787360,0.09201122,112470.0,112460.0,0.13781729]
[1757494787560,0.40166395,112470.0,112460.0,0.13781729]
[1757494789763,0.35402546,112470.0,112460.0,0.13781729]
[1757494793165,0.3540871,112470.0,112460.0,0.13781729]
[1757494796668,0.3540871,112470.0,112460.0,0.04386]
[1757494796872,0.3540871,112470.0,112460.0,0.13781729]
[1757494797570,0.3540871,112470.0,112460.0,0.04386]
[1757494797763,0.3540871,112470.0,112460.0,0.13781729]
[1757494801071,0.3540871,112470.0,112460.0,0.04386]
[1757494801269,0.3540871,112470.0,112460.0,0.13781729]
[1757494805962,0.0531671,112470.0,112460.0,0.13781729]
[1757494806161,0.90788559,112470.0,112460.0,0.13781729]
[1757494806769,0.90788559,112470.0,112460.0,0.04386]
[1757494806974,0.90788559,112470.0,112460.0,0.13781729]
[1757494807774,0.10080559,112470.0,112460.0,0.13781729]
[1757494807974,0.90788559,112470.0,112460.0,0.23177458]
[1757494808574,0.04443437,112470.0,112460.0,0.23177458]
[1757494808771,0.85151437,112470.0,112460.0,0.23177458]
[1757494809175,0.86060034,112470.0,112460.0,0.23177458]
[1757494810973,0.04443437,112470.0,112460.0,0.23177458]
[1757494811175,0.85151437,112470.0,112460.0,0.23177458]
[1757494812077,0.86021154,112470.0,112460.0,0.23177458]
[1757494813079,0.86021154,112470.0,112460.0,0.23299439]
[1757494813680,0.85151437,112470.0,112460.0,0.23299439]
[1757494814074,0.04443437,112470.0,112460.0,0.23299439]
[1757494814378,0.86034008,112470.0,112460.0,0.23299439]
[1757494814680,0.85147437,112470.0,112460.0,0.23299439]
[1757494814877,0.85147437,112470.0,112460.0,0.48299439]
[1757494815279,0.82834437,112470.0,112460.0,0.48299439]
[1757494818887,0.82830437,112470.0,112460.0,0.48299439]
[1757494819788,0.82830437,112470.0,112460.0,0.48376764]
[1757494820282,0.807,112470.0,112460.0,0.48376764]
[1757494820482,0.02132789,112470.0,112460.0,0.48376764]
[1757494820688,0.82832789,112470.0,112460.0,0.48376764]
[1757494820885,0.02132789,112470.0,112460.0,0.4842142]
[1757494821086,0.82832789,112470.0,112460.0,0.4842142]
[1757494823387,0.82828789,112470.0,112460.0,0.4842142]
[1757494823586,0.02132789,112470.0,112460.0,0.4842142]
[1757494823791,0.82828789,112470.0,112460.0,0.4842142]
[1757494824397,0.82828789,112470.0,112460.0,0.71917689]
[1757494825098,0.85083789,112470.0,112460.0,0.29629962]
[1757494825294,0.85083789,112470.0,112460.0,0.5782178]
[1757494826800,0.04387789,112470.0,112460.0,0.5782178]
[1757494827000,0.85123789,112470.0,112460.0,0.5782178]
[1757494838110,0.85079789,112470.0,112460.0,0.5782178]
[1757494839307,0.85079789,112470.0,112460.0,0.3282178]
[1757494841112,0.04387789,112470.0,112460.0,0.3282178]
[1757494841298,0.51651789,112470.0,112460.0,0.3282178]
[1757494841503,0.04387789,112470.0,112460.0,0.3282178]
[1757494841703,0.51651789,112470.0,112460.0,0.3282178]
[1757494842109,0.04387789,112470.0,112460.0,0.3282178]
[1757494842308,0.85079789,112470.0,112460.0,0.3282178]
[1757494842513,0.85079789,112470.0,112460.0,0.46917689]
[1757494845012,0.85079789,112470.0,112460.0,0.3282178]
[1757494845902,0.85079789,112470.0,112460.0,0.04629962]
[1757494846211,0.85079789,112470.0,112460.0,0.3282178]
[1757494850413,0.04387789,112470.0,112460.0,0.3282178]
[1757494850612,0.85079789,112470.0,112460.0,0.3282178]
[1757494851112,0.04387789,112470.0,112460.0,0.3282178]
[1757494851310,0.85079789,112470.0,112460.0,0.3282178]
[1757494851913,0.04387789,112470.0,112460.0,0.32922789]
[1757494852315,0.54523789,112470.0,112460.0,0.32922789]
[1757494853013,0.54523789,112470.0,112460.0,0.32943761]
[1757494853717,0.85079789,112470.0,112460.0,0.32943761]
[1757494856121,0.04387789,112470.0,112460.0,0.32943761]
[1757494856313,0.55591789,112470.0,112460.0,0.32943761]
[1757494859416,0.04387789,112470.0,112460.0,0.32943761]
[1757494859618,0.85079789,112470.0,112460.0,0.32943761]
[1757494860922,0.85075789,112470.0,112460.0,0.32943761]
[1757494861324,0.85075789,112470.0,112460.0,0.04751943]
[1757494861518,0.85075789,112470.0,112460.0,0.32943761]
[1757494867926,0.85075789,112470.0,112460.0,0.04751943]
[1757494868127,0.85075789,112470.0,112460.0,0.32943761]
[1757494868929,0.04387789,112470.0,112460.0,0.32943761]
[1757494869132,0.85075789,112470.0,112460.0,0.32943761]
[1757494884350,0.85075789,112470.0,112460.0,0.23549487]
[1757494889258,0.85067789,112470.0,112460.0,0.23549487]
[1757494895162,0.04387789,112470.0,112460.0,0.23549487]
[1757494895461,0.47439789,112470.0,112460.0,0.23549487]
[1757494895661,0.04387789,112470.0,112460.0,0.23549487]
[1757494896161,0.47435789,112470.0,112460.0,0.23549487]
[1757494896861,0.04387789,112470.0,112460.0,0.23549487]
[1757494897062,0.47431789,112470.0,112460.0,0.23549487]
[1757494898164,0.45299,112470.0,112460.0,0.23549487]
[1757494898966,0.47400435,112470.0,112460.0,0.23549487]
[1757494908470,0.47400939,112470.0,112460.0,0.23549487]
[1757494910779,0.82776711,112470.0,112460.0,0.10753715]
[1757494910981,0.82776711,112470.0,112460.0,0.01354943]
[1757494911475,0.87546467,112470.0,112460.0,0.01354943]
[1757494912577,0.89136386,112470.0,112460.0,0.01354943]
[1757494916685,0.89136386,112470.0,112460.0,0.01254943]
[1757494916886,0.89336386,112470.0,112460.0,0.01254943]
[1757494917081,1.26964386,112470.0,112460.0,0.01254943]
[1757494918284,1.27164386,112470.0,112460.0,0.01254943]
[1757494919483,1.17765614,112470.0,112460.0,0.01254943]
[1757494919782,0.37093614,112470.0,112460.0,0.01254943]
[1757494919988,1.22980386,112470.0,112460.0,0.01254943]
[1757494921188,0.46492386,112470.0,112460.0,0.01254943]
[1757494921393,1.27168386,112470.0,112460.0,0.01254943]
[1757494922285,1.17769614,112470.0,112460.0,0.01254943]
[1757494922483,1.16168998,112470.0,112460.0,0.01254943]
[1757494922684,1.2556777,112470.0,112460.0,0.01254943]
[1757494922879,1.2546777,112470.0,112460.0,0.00365943]
[1757494923082,0.01762,112450.0,112440.0,0.09408772]
[1757494923283,0.82434,112450.0,112440.0,0.09398772]
[1757494923478,0.84535939,112450.0,112440.0,0.11527772]
[1757494924289,0.84535939,112450.0,112440.0,0.12801772]
[1757494924884,0.03863939,112450.0,112440.0,0.12901772]
[1757494925190,0.84539939,112450.0,112440.0,0.12901772]
[1757494925387,0.84539939,112450.0,112440.0,0.22300544]
[1757494925787,0.03863939,112450.0,112440.0,0.22300544]
[1757494926086,0.84539939,112450.0,112440.0,0.22300544]
[1757494926688,0.91739574,112450.0,112440.0,0.22300544]
[1757494939197,0.91739574,112450.0,112440.0,0.12901772]
[1757494939400,0.91739574,112450.0,112440.0,0.22300544]
[1757494940494,0.91739574,112450.0,112440.0,0.09498772]
[1757494941287,0.91739574,112450.0,112440.0,0.21100544]
[1757494941497,0.91739574,112450.0,112440.0,0.01443]
[1757494941688,0.91739574,112450.0,112440.0,0.22443544]
[1757494941999,0.91739574,112450.0,112440.0,0.10841772]
[1757494942195,1.01138346,112450.0,112440.0,0.001]
[1757494942499,1.30897405,112450.0,112440.0,0.001]
[1757494943298,1.30902871,112450.0,112440.0,0.001]
[1757494943794,1.30902871,112450.0,112430.0,0.10287772]
[1757494943997,1.06012871,112450.0,112430.0,0.10287772]
[1757494944399,1.06112871,112450.0,112430.0,0.10287772]
[1757494945803,1.06112871,112450.0,112430.0,0.11630772]
[1757494945804,1.06012871,112450.0,112430.0,0.11630772]
[1757494946397,0.96614099,112450.0,112440.0,0.14108538]
[1757494946592,0.96604099,112450.0,112430.0,0.02232]
[1757494946796,0.96514099,112450.0,112430.0,0.02332]
[1757494947309,0.82438,112440.0,112430.0,0.04535]
[1757494947600,0.98653943,112440.0,112430.0,0.18643538]
[1757494948904,0.99540017,112440.0,112430.0,0.18643538]
[1757494949700,0.99540017,112440.0,112430.0,0.15097538]
[1757494953421,0.85435479,112440.0,112430.0,0.18643538]
[1757494953719,0.99544017,112440.0,112430.0,0.18643538]
[1757494956119,0.99544017,112440.0,112430.0,0.16440538]
[1757494956718,0.99544017,112440.0,112430.0,0.15097538]
[1757494957419,0.99544017,112440.0,112430.0,0.00989]
[1757494957718,0.99544017,112440.0,112430.0,0.15097538]
[1757494958218,0.99644017,112440.0,112430.0,0.15097538]
[1757494959213,1.13752555,112440.0,112430.0,0.15097538]
[1757494959418,0.99644017,112440.0,112430.0,0.15097538]
[1757494960220,0.99644017,112440.0,112430.0,0.14997538]
[1757494960419,0.99744017,112440.0,112430.0,0.14997538]
[1757494961618,0.99744017,112440.0,112430.0,0.14108538]
[1757494961820,0.19064017,112440.0,112430.0,0.14108538]
[1757494962112,0.99744017,112440.0,112430.0,0.14108538]
[1757494962318,1.04503076,112440.0,112430.0,0.14108538]
[1757494962518,0.99744017,112440.0,112430.0,0.14108538]
[1757494962818,0.99744017,112440.0,112430.0,0.00889]
[1757494963119,0.99744017,112440.0,112430.0,0.14997538]
[1757494963712,0.19064017,112440.0,112430.0,0.14997538]
[1757494964014,0.99744017,112440.0,112430.0,0.14997538]
[1757494964617,0.23829595,112440.0,112430.0,0.14997538]
[1757494964821,0.09721057,112440.0,112430.0,0.18456538]
[1757494965016,0.89313057,112440.0,112430.0,0.18456538]
[1757494965217,0.09721057,112440.0,112430.0,0.18456538]
[1757494965622,0.84449057,112440.0,112430.0,0.18456538]
[1757494968825,0.09721057,112440.0,112430.0,0.18456538]
[1757494969024,1.04505595,112440.0,112430.0,0.18456538]
[1757494970928,0.23829595,112440.0,112430.0,0.18456538]
[1757494971125,0.95753595,112440.0,112430.0,0.18456538]
[1757494972130,0.95753595,112440.0,112430.0,0.04348]
[1757494972331,1.04505595,112440.0,112430.0,0.18456538]
[1757494972530,0.99740017,112440.0,112430.0,0.18456538]
[1757494972734,0.99736017,112440.0,112430.0,0.18456538]
[1757494973033,0.99745313,112440.0,112430.0,0.18456538]
[1757494973729,1.04510891,112440.0,112430.0,0.18456538]
[1757494974331,0.99745313,112440.0,112430.0,0.18456538]
[1757494976532,0.99745313,112440.0,112430.0,0.04348]
[1757494976829,0.99745313,112440.0,112430.0,0.18456538]
[1757494978428,0.04964775,112440.0,112430.0,0.18456538]
[1757494978731,0.84750701,112440.0,112430.0,0.57565076]
[1757494979132,0.04078701,112440.0,112430.0,0.57565076]
[1757494979627,0.84750701,112440.0,112430.0,0.57565076]
[1757494979824,0.04078701,112440.0,112430.0,0.57565076]
[1757494980025,0.84750701,112440.0,112430.0,0.57565076]
[1757494980232,0.04078701,112440.0,112430.0,0.57565076]
[1757494980431,0.84746701,112440.0,112430.0,0.57565076]
[1757494981334,0.04078701,112440.0,112430.0,0.57565076]
[1757494981528,0.84746701,112440.0,112430.0,0.57565076]
[1757494984138,0.04078701,112440.0,112430.0,0.57565076]
[1757494984334,0.84746701,112440.0,112430.0,0.57565076]
[1757494986032,0.84742701,112440.0,112430.0,0.57565076]
[1757494986638,0.84742701,112440.0,112430.0,0.58437753]
[1757494987938,0.84742701,112440.0,112430.0,0.30220677]
[1757494988139,0.84742701,112440.0,112430.0,0.58437753]
[1757494988339,0.84738701,112440.0,112430.0,0.32565076]
[1757494990438,0.84738701,112440.0,112430.0,0.18456538]
[1757494992443,0.84738701,112440.0,112430.0,0.32565076]
[1757494998449,0.04078701,112440.0,112430.0,0.32565076]
[1757494998649,0.84730701,112440.0,112430.0,0.32565076]
[1757494999151,0.84730701,112440.0,112430.0,0.18456538]
[1757494999749,0.98839239,112440.0,112430.0,0.18456538]
[1757495003554,0.84730701,112440.0,112430.0,0.18456538]
[1757495004155,0.04078701,112440.0,112430.0,0.18456538]
[1757495004348,0.84726701,112440.0,112430.0,0.18456538]
[1757495006253,0.84726701,112440.0,112430.0,0.32565076]
[1757495006451,0.84722701,112440.0,112430.0,0.32565076]
[1757495007852,0.04078701,112440.0,112430.0,0.32565076]
[1757495008055,0.84722701,112440.0,112430.0,0.32565076]
[1757495008357,0.84722701,112440.0,112430.0,0.23154828]
[1757495008550,0.04078701,112440.0,112430.0,0.23154828]
[1757495008750,0.84722701,112440.0,112430.0,0.23154828]
[1757495009354,0.89488279,112440.0,112430.0,0.23154828]
[1757495009550,0.84722701,112440.0,112430.0,0.23154828]
[1757495012959,0.04078701,112440.0,112430.0,0.23154828]
[1757495013263,0.52294701,112440.0,112430.0,0.23154828]
[1757495015457,0.84718701,112440.0,112430.0,0.23154828]
[1757495019962,0.04078701,112440.0,112430.0,0.23154828]
[1757495020159,0.52270701,112440.0,112430.0,0.23154828]
[1757495023564,0.04078701,112440.0,112430.0,0.23154828]
[1757495023760,0.52254701,112440.0,112430.0,0.23154828]
[1757495029466,0.52254701,112440.0,112430.0,0.04348]
[1757495029667,0.52254701,112440.0,112430.0,0.23154828]
[1757495030168,0.52254701,112440.0,112430.0,0.04348]
[1757495030369,0.52254701,112440.0,112430.0,0.13751414]
[1757495032771,0.52254701,112440.0,112430.0,0.04348]
[1757495033070,0.86658115,112440.0,112430.0,0.00889]
[1757495033272,0.86658115,112440.0,112430.0,0.10292414]
[1757495033473,0.77254701,112440.0,112430.0,0.10292414]
[1757495033858,0.82020279,112440.0,112430.0,0.10292414]
[1757495035769,0.77254701,112440.0,112430.0,0.10292414]
[1757495036168,0.86658115,112440.0,112430.0,0.10292414]
[1757495036471,0.86658115,112440.0,112430.0,0.00889]
[1757495036970,0.91423693,112440.0,112430.0,0.00889]
[1757495040275,0.43247693,112440.0,112430.0,0.00889]
[1757495040477,1.23871693,112440.0,112430.0,0.00889]
[1757495043083,0.08844279,112440.0,112430.0,0.13879414]
[1757495043270,0.84702701,112440.0,112430.0,0.13879414]
[1757495043667,0.84702701,112440.0,112430.0,0.04476]
[1757495043871,0.84702701,112440.0,112430.0,0.13879414]
[1757495044781,0.04078701,112440.0,112430.0,0.13879414]
[1757495044989,0.68978701,112440.0,112430.0,0.13879414]
[1757495045582,0.84702701,112440.0,112430.0,0.13879414]
[1757495046993,0.04078701,112440.0,112430.0,0.13879414]
[1757495047291,0.84702701,112440.0,112430.0,0.13879414]
[1757495047891,0.04078701,112440.0,112430.0,0.13879414]
[1757495048093,0.84702701,112440.0,112430.0,0.13879414]
[1757495049889,0.84702701,112440.0,112430.0,0.00889]
[1757495050095,0.94106115,112440.0,112430.0,0.00889]
[1757495050398,0.94106115,112440.0,112430.0,0.10292414]
[1757495051593,0.13482115,112440.0,112430.0,0.10292414]
[1757495051794,0.94106115,112440.0,112430.0,0.10292414]
[1757495053497,0.98873554,112440.0,112430.0,0.10292414]
[1757495053686,0.94106115,112440.0,112430.0,0.10292414]
[1757495054597,0.94106115,112440.0,112430.0,0.00889]
[1757495058100,0.94102115,112440.0,112430.0,0.00889]
[1757495058302,0.9887125,112440.0,112430.0,0.00889]
[1757495058799,0.94102115,112440.0,112430.0,0.00889]
[1757495061700,1.0046179,112440.0,112430.0,0.00889]
[1757495062603,0.98873684,112440.0,112430.0,0.00889]
[1757495065403,0.94102115,112440.0,112430.0,0.00889]
[1757495065603,1.03505529,112440.0,112430.0,0.00889]
[1757495065803,1.08277098,112440.0,112430.0,0.00889]
[1757495065997,1.03505529,112440.0,112430.0,0.00889]
[1757495066502,0.84698701,112440.0,112430.0,0.00889]
[1757495066700,1.03505529,112440.0,112430.0,0.00889]
[1757495068308,1.12923109,112440.0,112430.0,0.00889]
[1757495072609,1.17694678,112440.0,112430.0,0.00889]
[1757495073509,1.12923109,112440.0,112430.0,0.00889]
[1757495073713,1.12923109,112440.0,112430.0,0.15001204]
[1757495074809,0.32303109,112440.0,112430.0,0.15001204]
[1757495075013,1.12923109,112440.0,112430.0,0.15001204]
[1757495075211,1.17694678,112440.0,112430.0,0.15001204]
[1757495075413,0.8947027,112440.0,112430.0,0.00889]
[1757495075601,1.17694678,112440.0,112430.0,0.15001204]
[1757495078114,1.17694678,112440.0,112430.0,0.00889]
[1757495078315,1.17694678,112440.0,112430.0,0.15001204]
[1757495078516,1.17694678,112440.0,112430.0,0.00889]
[1757495078715,1.17694678,112440.0,112430.0,0.15001204]
[1757495079015,1.17694678,112440.0,112430.0,0.00889]
[1757495087717,1.17694678,112440.0,112430.0,0.15001204]
[1757495088412,1.17655562,112440.0,112430.0,0.15001204]
[1757495089220,1.17655562,112440.0,112430.0,0.00889]
[1757495090014,0.89431154,112440.0,112430.0,0.00889]
[1757495090219,1.17655562,112440.0,112430.0,0.00889]
[1757495091621,1.12883993,112440.0,112430.0,0.00889]
[1757495091817,1.37883993,112440.0,112410.0,0.0001]
[1757495092023,0.00339,112410.0,112400.0,0.17587204]
[1757495092316,0.86711204,112410.0,112400.0,0.31689408]
[1757495092522,0.88788789,112410.0,112400.0,0.31689408]
[1757495092724,0.93560358,112410.0,112400.0,0.31689408]
[1757495093223,0.93560358,112410.0,112400.0,0.32578408]
[1757495093820,0.21300358,112410.0,112400.0,0.32578408]
[1757495094024,0.87220358,112410.0,112400.0,0.32578408]
[1757495094321,1.09174585,112410.0,112400.0,0.32578408]
[1757495095021,0.28566585,112410.0,112400.0,0.02232]
[1757495095217,0.14454381,112410.0,112400.0,0.16344204]
[1757495095421,1.01362585,112410.0,112400.0,0.18466204]
[1757495095624,0.96591016,112410.0,112400.0,0.18466204]
[1757495095810,0.96591016,112410.0,112400.0,0.18566204]
[1757495096016,1.01362585,112410.0,112400.0,0.18566204]
[1757495096426,1.01362585,112410.0,112400.0,0.04454]
[1757495096722,1.01362585,112410.0,112400.0,0.18566204]
[1757495096914,0.14454381,112410.0,112400.0,0.32678408]
[1757495097316,0.70522812,112410.0,112400.0,0.32678408]
[1757495097917,0.09682812,112410.0,112400.0,0.57678408]
[1757495098113,0.90290812,112410.0,112400.0,0.57678408]
[1757495098319,1.04403016,112410.0,112400.0,0.57678408]
[1757495098525,1.04403016,112410.0,112400.0,0.16444204]
[1757495098526,1.04407016,112410.0,112400.0,0.16444204]
[1757495098826,1.09178585,112410.0,112400.0,0.16444204]
[1757495100724,1.09178585,112410.0,112400.0,0.00989]
[1757495100925,1.48290789,112410.0,112400.0,0.00777]
[1757495101139,1.57631424,112410.0,112380.0,0.0001]
[1757495101330,0.18883773,112390.0,112370.0,0.17524204]
[1757495101529,0.06859154,112390.0,112380.0,0.14112204]
[1757495101829,0.99883773,112390.0,112380.0,0.14112204]
[1757495102029,1.01961358,112390.0,112380.0,0.14112204]
[1757495102624,0.97189789,112390.0,112380.0,0.14112204]
[1757495103031,0.97209789,112390.0,112380.0,0.14112204]
[1757495103333,0.16189789,112390.0,112380.0,0.14112204]
[1757495103530,0.97209789,112390.0,112380.0,0.17514204]
[1757495103729,0.97205789,112390.0,112380.0,0.14112204]
[1757495104321,0.9810543,112390.0,112380.0,0.14112204]
[1757495104529,0.9810543,112390.0,112370.0,0.15392204]
[1757495104723,0.14112204,112380.0,112370.0,0.14112204]
[1757495104929,0.16189789,112380.0,112370.0,0.14112204]
[1757495105131,0.55301993,112380.0,112360.0,0.00052729]
[1757495105325,0.95120204,112370.0,112360.0,0.17566933]
[1757495105532,0.14122204,112380.0,112360.0,0.17566933]
[1757495105834,0.16227348,112380.0,112370.0,0.14112204]
[1757495106132,0.97221348,112380.0,112370.0,0.14112204]
[1757495106333,0.16217348,112380.0,112370.0,0.14112204]
[1757495106528,0.97221348,112380.0,112370.0,0.14212204]
[1757495106929,0.97221348,112380.0,112370.0,0.001]
[1757495106930,1.11333552,112380.0,112370.0,0.001]
[1757495107331,0.30329552,112380.0,112370.0,0.001]
[1757495107530,1.11325552,112380.0,112370.0,0.001]
[1757495109334,1.36325552,112380.0,112370.0,0.001]
[1757495109741,1.36317552,112380.0,112370.0,0.001]
[1757495111641,1.36321552,112380.0,112370.0,0.001]
[1757495111840,1.36309552,112380.0,112370.0,0.001]